Cogmind - Beta 9.3 @@@ ROGUE MODE // 2019.12.30 @ 23:29:49 // Winter2019/RPGLIKE Player: PyroDawn Result: Destroyed by D-53 Grenadier with Mini Grenade Launcher Performance ------------- Evolutions (0) 0 Regions Visited (0) 0 Robots Destroyed (11) 55 Value Destroyed (43) 43 Prototype IDs (0) 0 Alien Tech Used (0) 0 Bonus (0) 0 TOTAL SCORE: 98 Bonus ------- None Cogmind --------- Core Integrity 0/600 Matter 290/300 Energy 250/250 System Corruption 0% Temperature Cool (0) Movement Core (50) Location -11/Scrapyard Parts ------- > --- POWER (1) -------- Ion Engine > --- PROPULSION (2) --- Light Treads Aluminum Leg > --- UTILITY (2) ------ Improved Terrain Scanner Seismic Analyzer > --- WEAPON (2) ------- Light Assault Rifle Light Assault Rifle > --- INVENTORY (1) ---- Mining Laser Peak State ------------ > --- POWER ------------ Ion Engine > --- PROPULSION ------- Light Treads Light Treads > --- UTILITY ---------- Improved Terrain Scanner Seismic Analyzer > --- WEAPON ----------- Light Assault Rifle Light Assault Rifle > --- INVENTORY -------- Medium Laser [Rating: 8] Favorites ----------- Power Ion Engine Engine Ion Engine Propulsion Light Treads Treads Light Treads Leg Aluminum Leg Utility Seismic Analyzer Device Improved Terrain Scanner Processor Seismic Analyzer Weapon Light Assault Rifle Energy Gun Medium Laser Ballistic Gun Light Assault Rifle Build | -11 ------- Run | Scr Slots Evolved 3 | 3 Power . | . Propulsion 1 | 1 Utility 1 | 1 Weapon 1 | 1 Parts Attached 10 | 10 Power 1 | 1 Engine 1 | 1 Core . | . Reactor . | . Propulsion 3 | 3 Treads 2 | 2 Leg 1 | 1 Wheel . | . Hover . | . Flight . | . Utility 2 | 2 Device 1 | 1 Storage . | . Processor 1 | 1 Hackware . | . Protection . | . Artifact . | . Weapon 4 | 4 Energy Gun 1 | 1 Energy Cannon . | . Ballistic Gun 3 | 3 Ballistic Cannon . | . Launcher . | . Special Weapon . | . Impact Weapon . | . Slashing Weapon . | . Piercing Weapon . | . Special Melee Weapon . | . Unidentified Prototypes . | . Parts Lost . | . Power . | . Propulsion . | . Utility . | . Weapon . | . Highest Loss Streak . | . Average Slot Usage (%) . | . Naked Turns . | . Heaviest Build 8 | 8 Greatest Support 30 | 30 Greatest Overweight (x) . | . Average Overweight (x) . | . Largest Inventory Capacity 1 | 1 Average Capacity . | . Most Carried 1 | 1 Average Carried . | . Final Capacity 1 | 1 Final Carried 1 | 1 Class Distribution -------------------- None Dominant Class ---------------- None Resources | -11 ----------- Run | Scr Matter Collected 363 | 363 Remotely . | . Salvage Created 297 | 297 Parts 17 | 17 Haulers Intercepted . | . Recyclers Shooed . | . Parts Field Recycled . | . Retrieved Matter . | . Parts Self-Destructed . | . Prevented . | . Kills | -11 ------- Run | Scr Combat Hostiles Destroyed 3 | 3 Guns 3 | 3 Classes Destroyed 4 | 4 Worker 2 | 2 Tunneler 5 | 5 Recycler 1 | 1 Assembled 3 | 3 Best Kill Streak 5 | 5 Combat Bots Only 3 | 3 Max Kills in Single Turn 2 | 2 Gunslinging . | . Exploded . | . Melee . | . Uniques/NPCs Destroyed . | . Combat | -11 -------- Run | Scr Damage Taken 756 | 756 Core 610 | 610 Absorbed by Shields . | . Redirected to Core 529 | 529 Core Remaining (%) . | . Volleys Fired 43 | 43 Largest 2 | 2 Hottest 70 | 70 Shots Fired 81 | 81 Gun 81 | 81 Cannon . | . Launcher . | . Special . | . Kinetic 73 | 73 Thermal 8 | 8 Explosive . | . Electromagnetic . | . Robot Hit Streak 7 | 7 Robot Miss Streak 4 | 4 Penetration Max . | . Secondary Targets 1 | 1 Max Gunslinging Chain 1 | 1 Shots Hit Robots 51 | 51 Core Hits 22 | 22 Critical Hits 2 | 2 Critical Kills . | . Critical Parts Destroyed 2 | 2 Melee Attacks . | . Impact . | . Slashing . | . Piercing . | . Sneak Attacks . | . Combat Hostiles . | . Follow-up Attacks . | . Damage Inflicted 419 | 419 Guns 419 | 419 Cannons . | . Explosions . | . Melee . | . Ramming . | . Kinetic 383 | 383 Thermal 36 | 36 Explosive . | . Electromagnetic . | . Impact . | . Slashing . | . Piercing . | . Highest Corruption . | . Average Corruption . | . Corruption Purged . | . Overload Shots . | . Overflow Damage . | . Projectiles . | . Explosions . | . Melee . | . Knockbacks . | . Impact . | . Kinetic . | . Secondary . | . Self-Inflicted Damage . | . Shots . | . Rammed . | . Targets Rammed . | . Kicked . | . Crushed . | . Highest Temperature 130 | 130 Average Temperature 66 | 66 Received Heat Transfer . | . Siege Activations . | . Robots Corrupted . | . Combat Hostiles . | . Parts Fried . | . Impact Corruptions . | . Robots Melted . | . Combat Hostiles . | . Parts Melted . | . Heat Transferred 111 | 111 Parts Sabotaged . | . Parts Stolen . | . Parts Stripped . | . Power Chain Reactions . | . Missiles Intercepted . | . Alert | -11 ------- Run | Scr Peak Influence 30 | 30 Average Influence 3 | 3 Maximum Alert Level . | . Low Security (%) 100 | 100 Level 1 . | . Level 2 . | . Level 3 . | . Level 4 . | . Level 5 . | . High Security . | . Max Security . | . Squads Dispatched . | . Investigation . | . Extermination . | . Reinforcement . | . Assault . | . Garrison . | . Intercept . | . Construction Impeded . | . Haulers Reinforced . | . Stealth | -11 --------- Run | Scr Distress Signals . | . Communications Jammed . | . Distress Signals . | . Times Spotted 17 | 17 Peak Tracking Total 12 | 12 Tactical Retreats 2 | 2 Traps | -11 ------- Run | Scr Traps Triggered . | . Indirectly . | . Trap Hack Attempts . | . Triggered . | . Disarmed . | . Reprogrammed . | . Reused . | . Traps Extracted . | . Installed . | . Triggered . | . Machines | -11 ---------- Run | Scr Machines Disabled . | . Max in Single Turn . | . Machines Sabotaged . | . Garrisons Compromised . | . Overloaded Fab Kills . | . Fab Network Shutdowns . | . Hacking | -11 --------- Run | Scr Machines Accessed . | . Terminals . | . Fabricators . | . Repair Stations . | . Recycling Units . | . Scanalyzers . | . Garrison Access . | . Total Hacks . | . Successful . | . Failed . | . Catastrophic . | . Database Lockouts . | . Manual . | . Terminals . | . Fabricators . | . Repair Stations . | . Recycling Units . | . Scanalyzers . | . Garrison Access . | . Terminal Hacks . | . Fabricator Hacks . | . Repair Station Hacks . | . Recycling Unit Hacks . | . Scanalyzer . | . Garrison Access Hacks . | . Unauthorized Hacks . | . Terminals . | . Fabricators . | . Repair Stations . | . Recycling Units . | . Scanalyzers . | . Garrison Access . | . Data Cores Recovered . | . Used . | . Hacking Detections . | . Full Trace Events . | . Feedback Events . | . Feedback Blocked . | . Robot Schematics Acquired . | . Robots Built . | . Matter . | . Time . | . Total Robot Build Rating . | . Part Schematics Acquired . | . Parts Built . | . Matter . | . Time . | . Total Part Build Rating . | . Parts Repaired . | . Time . | . Parts Recycled . | . Recycled Matter . | . Retrieved Matter . | . Retrieved Components . | . Parts Scanalyzed . | . Part Schematics Acquired . | . Parts Damaged . | . Bothacking | -11 ------------ Run | Scr Used RIF Installer . | . Robots Hacked . | . Non-combat . | . Combat . | . Robot Hacks Applied . | . Relay Couplers Released . | . Robots Rewired . | . Allies Hacked . | . Hacks Repelled . | . Allies | -11 -------- Run | Scr Total Allies . | . Largest Group . | . Highest-Rated Group . | . Highest-Rated Ally . | . Total Orders . | . Ally Attacks . | . Total Damage . | . Kills . | . Allies Corrupted . | . Allies Melted . | . Intel | -11 ------- Run | Scr Robot Analysis Total . | . Derelict Logs Recovered . | . Drone Launches . | . Drone Recoveries . | . Exploration | -11 ------------- Run | Scr Turns Passed 3713 | 3713 Spaces Moved 583 | 583 Core 580 | 580 Treads 3 | 3 Legs . | . Wheels . | . Hover . | . Flight . | . Fastest Speed 50 | 50 Average Speed 50 | 50 Slowest Speed 160 | 160 Overloaded Moves . | . Propulsion Burnouts . | . Robots Hopped . | . Cave-ins Triggered . | . Exploration Rate (%) 43 | 43 Regions Visited . Branch Regions . Pre-discovered Areas . | . Known Exits Taken . | . Unknown Exits Taken . | . Scrap Searched . | . Spaces Dug . | . Terrain Destroyed . | . Melee . | . Projectile . | . AOE . | . Actions | -11 --------- Run | Scr Total 3932 | 3932 Wait 3293 | 3293 Move 583 | 583 Hop . | . Pick Up 3 | 3 Fast Attach 8 | 8 Attach 2 | 2 Detach . | . Swap . | . Drop . | . Fire 43 | 43 Melee . | . Ram . | . Kick . | . Crush . | . Escape Stasis . | . Rewire . | . Trap . | . Miscellaneous . | . Route ------- -11/Scrapyard (discovered 1 exit: [*Mat]) History --------- Turn | Location | Event 4 | -11/Scrapyard | Upgraded with Propulsion slot (x1) 4 | -11/Scrapyard | Upgraded with Utility slot (x1) 4 | -11/Scrapyard | Upgraded with Weapon slot (x1) 6 | -11/Scrapyard | Discovered new exit (range 16) 3524 | -11/Scrapyard | Assembled infested the area 3570 | -11/Scrapyard | Core integrity fell below 50% 3583 | -11/Scrapyard | Core integrity fell below 20% 3714 | -11/Scrapyard | Destroyed by D-53 Grenadier with Mini Grenade Launcher Last Messages --------------- 03563_ Switching to secondary target: as-30072. 03564_ Lgt. Treads severed. 03566_ Acquired Lgt. Assault Rifle. 03569_ Med. Laser severed. 03569_ C-30 ARC bursts open, deploying its payload. 03569_ D-53 Grenadier unfolds itself. 03577_ as-73685 destroyed. 03578_ as-68812 destroyed. 03580_ as-30072 destroyed. 03580_ as-66923 destroyed. 03580_ as-55563 destroyed. 03581_ as-96483 destroyed. 03581_ as-89600 destroyed. 03581_ Cmb. Airjet severed. 03584_ D-53 Grenadier destroyed. 03584_ Acquired 41 matter. 03600_ The unstable cave ceiling collapses. 03623_ Acquired Mining Laser. 03634_ Acquired Aluminum Leg. 03708_ Acquired 4 matter. Map ----- +----------------------------------------------------+ | # = ######### # #####???????? | | % =% ######### # #####???????? | | * # = ###### # # ######??????? | | ###### # #####???????? | | ###### # # ######??????? | | ###### # ######??????? | | ####### # # #####???????? | | ##################### # ################??????? | | ######################### ################??????? | | ?####?############ ##########?????? | | ################## #######?#??????? | | ?########### # ############ ##########??????? | | ##########?# # ######## ?###??????? | | ############ # ######## ###???????? | | ##?####?#??# # ######## ####??????? | | ####??#???## # ######## ###???????? | | ??????#??### # ###???????? | | #??????##?## # # ##????????? | | ??????????## # ###### # # # ##????????? | | ??????????## # ##############?#??????? | | ?????????### # # # # ######?#?????? | | ??????????## # # #####???#????? | | ???????##### # # #####?#??????? | | ???????# ######### d ######?#?????? | | ???????# #######??????? | | ???????############### @ #####??####### | | ???????????############# # ?#?# | | ??????#????############# # ???# | | ??#??#??##?############# # ?? # | | ?##??#????###############= ########## ##### | | ????????############## = ####### # | | ??#?????# ##### % ####### ## | | ???#????# * =##### ########## ### | | ?#??????# % ##### | | ?#??????# *=%* = = ## | | ????????# = %% ### ###### ### #? | | ????????# = ##### |% !<*## ???###?## ##? | | ??#?????# #??## =% = ## #???????# #?? | | ??????#?# #???########### # ??????# #?? | | ???##???#### ####?#?#?#?###??## #???????? ?? | | ??????????## ##????????????##?# #???????? # ? | | #?????#????# #?????#??????????# #????????##### | | ?????#?????# #???##????#???##?# #????????????? | | ?????##?#??# ########?????????# #????????????? | | ???????????# #??#??????# ##????????????? | | ??#?#????#?# ########??#####?????????????? | | ?#????#????# ###### # #????????????????????? | | ????????#### #?#??# # #?#??????????????????? | | ??????#?# #??#?# # #????????????????????? | | ??#?????# #??#?# #????????? ??????????? | +----------------------------------------------------+ Best States ------------- Heat Dissipation 25 Energy Generation 10 Energy Capacity 250 Matter Stores 300 Matter Capacity 300 Sight Range 17 Robot Scan Range 4 Terrain Scan Range 16 Terrain Scan Density 60 Evasion (%) 50 Offensive Hacking 5 Defensive Hacking 5 Item Schematics ----------------- None Robot Schematics ------------------ None Fabricated ------------ Nothing Alien Tech Used ----------------- None Achievements -------------- None Challenges ------------ None RPGLIKE | -11 --------- Run | Scr Levels Raised . | . XP Earned 3000 | 3000 XP Spent 2875 | 2875 Upgrades 12 | 12 Propulsion Slot 1 | 1 Utility Slot 1 | 1 Weapon Slot 1 | 1 Mass Support 2 | 2 Inventory Capacity 1 | 1 Sight Range 1 | 1 Sensor Range 2 | 2 Melee Accuracy 1 | 1 Hack Attack % 1 | 1 Hack Defense % 1 | 1 Protomatter Created 12 | 12 Protomatter Decayed . | . Game ------ Seed CoilBladeProtomatter Manual? 0 Play Time 00:20:12 Cumulative 439.0 hours Start 2019.12.30 @ 01:38:39 End 2019.12.30 @ 23:29:49 Sessions 0 Manual Loads 0 Difficulty Rogue Special Mode Winter2019/RPGLIKE Game No. 124 Rogue 124 Adventurer 0 Explorer 0 Win Type - Total 1 Types 1/0/0/0/0/0/0 Lore% 67 Gallery% 75 Achievement% 48 Wizard Run 0 Options --------- ASCII 0 Keyboard 0 Movement Arrows Keybinds 0 Fullscreen 1 Font 12/Smallcaps Map View 83x54 Tactical HUD 1 Map Filters NONE Filters NONE Steam 1 RUN: 158bf305-8365-4cb9-b0d2-b45a4470882e